[Event "Titled Tuesday Blitz May 03 Late 2022"]
[White "Kholin, Aleksandr"]
[Black "Milanovic, Marko"]
[WhiteFideId "14179385"]
[BlackFideId "980129"]
[WhiteElo "2464"]
[BlackElo "2159"]
[Result "1-0"]
[Round "05"]
[TimeControl "180+1"]
[Date "2022.05.03"]
[WhiteClock "0:00:18"]
[BlackClock "0:00:08"]

1. d4 {[%clk 0:02:59]}  Nf6 {[%clk 0:02:55]} 2. c4 {[%clk 0:02:58]}  c5 {[%clk 0:02:56]} 3. d5 {[%clk 0:02:58]}  e6 {[%clk 0:02:56]} 4. Nc3 {[%clk 0:02:57]}  exd5 {[%clk 0:02:56]} 5. cxd5 {[%clk 0:02:58]}  d6 {[%clk 0:02:57]} 6. Nf3 {[%clk 0:02:58]}  g6 {[%clk 0:02:57]} 7. g3 {[%clk 0:02:58]}  Bg7 {[%clk 0:02:57]} 8. Bg2 {[%clk 0:02:58]}  O-O {[%clk 0:02:58]} 9. O-O {[%clk 0:02:58]}  Re8 {[%clk 0:02:56]} 10. Nd2 {[%clk 0:02:57]}  a6 {[%clk 0:02:55]} 11. a4 {[%clk 0:02:56]}  Nbd7 {[%clk 0:02:51]} 12. h3 {[%clk 0:02:54]}  Qc7 {[%clk 0:02:43]} 13. Nc4 {[%clk 0:02:52]}  Ne5 {[%clk 0:02:41]} 14. Na3 {[%clk 0:02:48]}  b6 {[%clk 0:02:11]} 15. f4 {[%clk 0:02:45]}  Ned7 {[%clk 0:02:11]} 16. e4 {[%clk 0:02:32]}  Nh5 {[%clk 0:02:07]} 17. Kh2 {[%clk 0:02:31]}  c4 {[%clk 0:01:54]} 18. Qe2 {[%clk 0:02:20]}  a5 {[%clk 0:01:43]} 19. Nab5 {[%clk 0:02:14]}  Qc5 {[%clk 0:01:33]} 20. Be3 {[%clk 0:02:08]}  Qb4 {[%clk 0:01:33]} 21. Nd4 {[%clk 0:01:44]}  Nc5 {[%clk 0:01:22]} 22. Nc6 {[%clk 0:01:38]}  Qb3 {[%clk 0:01:19]} 23. Ra3 {[%clk 0:01:36]}  Qxa3 {[%clk 0:01:12]} 24. bxa3 {[%clk 0:01:35]}  Bxc3 {[%clk 0:01:12]} 25. Qxc4 {[%clk 0:01:35]}  Bg7 {[%clk 0:01:06]} 26. Rd1 {[%clk 0:01:26]}  Ba6 {[%clk 0:01:03]} 27. Qc2 {[%clk 0:01:26]}  Nf6 {[%clk 0:00:59]} 28. e5 {[%clk 0:01:24]}  Nfd7 {[%clk 0:00:58]} 29. e6 {[%clk 0:01:16]}  Nf6 {[%clk 0:00:48]} 30. f5 {[%clk 0:01:09]}  Rac8 {[%clk 0:00:37]} 31. Bd4 {[%clk 0:01:02]}  fxe6 {[%clk 0:00:28]} 32. fxe6 {[%clk 0:00:56]}  Bb7 {[%clk 0:00:26]} 33. Na7 {[%clk 0:00:48]}  Rcd8 {[%clk 0:00:18]} 34. Nb5 {[%clk 0:00:42]}  Nh5 {[%clk 0:00:09]} 35. Bxg7 {[%clk 0:00:40]}  Kxg7 {[%clk 0:00:10]} 36. Rf1 {[%clk 0:00:37]}  Kg8 {[%clk 0:00:08]} 37. g4 {[%clk 0:00:28]}  Ng7 {[%clk 0:00:07]} 38. Rf7 {[%clk 0:00:27]}  Ba8 {[%clk 0:00:04]} 39. Qc3 {[%clk 0:00:26]}  Ncxe6 {[%clk 0:00:01]} 40. dxe6 {[%clk 0:00:25]}  Nxe6 {[%clk 0:00:02]} 41. Bxa8 {[%clk 0:00:20]}  Kxf7 {[%clk 0:00:02]} 42. Bd5 {[%clk 0:00:20]}  Ke7 {[%clk 0:00:02]} 43. Bxe6 {[%clk 0:00:19]}  Kxe6 {[%clk 0:00:02]} 44. Nc7+ {[%clk 0:00:19]}  Kf7 {[%clk 0:00:02]} 45. Nxe8 {[%clk 0:00:20]}  Rxe8 {[%clk 0:00:03]} 46. Qc7+ {[%clk 0:00:20]}  Re7 {[%clk 0:00:02]} 47. Qxd6 {[%clk 0:00:20]}  Re2+ {[%clk 0:00:02]} 48. Kg3 {[%clk 0:00:20]}  Re3+ {[%clk 0:00:03]} 49. Kh4 {[%clk 0:00:20]}  h6 {[%clk 0:00:02]} 50. Qd7+ {[%clk 0:00:18]}  Kf6 {[%clk 0:00:02]} 51. Qd4+ {[%clk 0:00:18]}  Re5 {[%clk 0:00:03]} 52. Kg3 {[%clk 0:00:18]}  Ke6 {[%clk 0:00:02]} 53. Qxb6+ {[%clk 0:00:16]}  Kf7 {[%clk 0:00:03]} 54. Qc7+ {[%clk 0:00:15]}  Kf6 {[%clk 0:00:03]} 55. Qc6+ {[%clk 0:00:16]}  Kf7 {[%clk 0:00:03]} 56. Qd7+ {[%clk 0:00:14]}  Kf6 {[%clk 0:00:04]} 57. Qd4 {[%clk 0:00:15]}  Ke6 {[%clk 0:00:04]} 58. Qb6+ {[%clk 0:00:14]}  Kf7 {[%clk 0:00:03]} 59. h4 {[%clk 0:00:15]}  g5 {[%clk 0:00:04]} 60. hxg5 {[%clk 0:00:15]}  hxg5 {[%clk 0:00:04]} 61. Qd4 {[%clk 0:00:16]}  Ke6 {[%clk 0:00:04]} 62. Qc4+ {[%clk 0:00:15]}  Kf6 {[%clk 0:00:05]} 63. Kf3 {[%clk 0:00:15]}  Kg6 {[%clk 0:00:04]} 64. Qc6+ {[%clk 0:00:14]}  Kf7 {[%clk 0:00:05]} 65. Qd6 {[%clk 0:00:14]}  Re6 {[%clk 0:00:03]} 66. Qd5 {[%clk 0:00:13]}  Kf6 {[%clk 0:00:03]} 67. Qf5+ {[%clk 0:00:12]}  Ke7 {[%clk 0:00:02]} 68. Qxg5+ {[%clk 0:00:13]}  Kd7 {[%clk 0:00:03]} 69. Qxa5 {[%clk 0:00:14]}  Rf6+ {[%clk 0:00:03]} 70. Qf5+ {[%clk 0:00:14]}  Rxf5+ {[%clk 0:00:03]} 71. gxf5 {[%clk 0:00:15]}  Kc6 {[%clk 0:00:04]} 72. Kf4 {[%clk 0:00:15]}  Kb6 {[%clk 0:00:05]} 73. Ke5 {[%clk 0:00:16]}  Ka5 {[%clk 0:00:06]} 74. f6 {[%clk 0:00:17]}  Kxa4 {[%clk 0:00:07]} 75. f7 {[%clk 0:00:18]}  Kxa3 {[%clk 0:00:08]} 1-0


[Site "https://www.chess.com"]

[Event "Titled Tuesday Blitz May 03 Late 2022"]
[White "Koelle, Tobias"]
[Black "Sztokbant, Bernardo Vainzoff"]
[WhiteFideId "16207378"]
[BlackFideId "2115956"]
[WhiteElo "2541"]
[BlackElo "2225"]
[Result "1-0"]
[Round "05"]
[TimeControl "180+1"]
[Date "2022.05.03"]
[WhiteClock "0:01:28"]
[BlackClock "0:00:04"]

1. Nf3 {[%clk 0:02:57]}  Nf6 {[%clk 0:02:59]} 2. c4 {[%clk 0:02:56]}  c5 {[%clk 0:02:59]} 3. Nc3 {[%clk 0:02:55]}  Nc6 {[%clk 0:02:59]} 4. g3 {[%clk 0:02:54]}  g6 {[%clk 0:02:59]} 5. Bg2 {[%clk 0:02:54]}  Bg7 {[%clk 0:02:59]} 6. O-O {[%clk 0:02:54]}  O-O {[%clk 0:02:59]} 7. a3 {[%clk 0:02:55]}  d5 {[%clk 0:02:59]} 8. cxd5 {[%clk 0:02:54]}  Nxd5 {[%clk 0:03:00]} 9. e3 {[%clk 0:02:38]}  Bg4 {[%clk 0:02:52]} 10. h3 {[%clk 0:02:36]}  Bc8 {[%clk 0:02:42]} 11. Nxd5 {[%clk 0:02:33]}  Qxd5 {[%clk 0:02:39]} 12. d4 {[%clk 0:02:34]}  Qd6 {[%clk 0:02:34]} 13. dxc5 {[%clk 0:02:29]}  Qxc5 {[%clk 0:02:34]} 14. b4 {[%clk 0:02:29]}  Qb6 {[%clk 0:02:34]} 15. Ra2 {[%clk 0:02:27]}  Be6 {[%clk 0:02:33]} 16. Rd2 {[%clk 0:02:27]}  Rfd8 {[%clk 0:02:31]} 17. Ng5 {[%clk 0:02:24]}  Bc4 {[%clk 0:02:24]} 18. Re1 {[%clk 0:02:19]}  Bc3 {[%clk 0:02:24]} 19. Qc2 {[%clk 0:02:13]}  Bxd2 {[%clk 0:02:11]} 20. Bxd2 {[%clk 0:02:14]}  Bd3 {[%clk 0:01:51]} 21. Qb3 {[%clk 0:02:12]}  Ne5 {[%clk 0:01:42]} 22. Bc3 {[%clk 0:02:11]}  Nc4 {[%clk 0:01:40]} 23. Rd1 {[%clk 0:02:07]}  Rac8 {[%clk 0:01:13]} 24. Ba1 {[%clk 0:01:49]}  h6 {[%clk 0:00:36]} 25. Nxf7 {[%clk 0:01:47]}  Kxf7 {[%clk 0:00:37]} 26. Rxd3 {[%clk 0:01:47]}  Rxd3 {[%clk 0:00:25]} 27. Qxd3 {[%clk 0:01:48]}  Nd6 {[%clk 0:00:15]} 28. Bd4 {[%clk 0:01:45]}  Qc7 {[%clk 0:00:15]} 29. Qb3+ {[%clk 0:01:44]}  e6 {[%clk 0:00:13]} 30. Qa4 {[%clk 0:01:42]}  a6 {[%clk 0:00:12]} 31. Bc5 {[%clk 0:01:41]}  Nf5 {[%clk 0:00:06]} 32. Qb3 {[%clk 0:01:40]}  Qd7 {[%clk 0:00:04]} 33. e4 {[%clk 0:01:37]}  Nd4 {[%clk 0:00:03]} 34. Qe3 {[%clk 0:01:38]}  e5 {[%clk 0:00:01]} 35. Qxh6 {[%clk 0:01:38]}  Ne2+ {[%clk 0:00:01]} 36. Kh2 {[%clk 0:01:38]}  Qd1 {[%clk 0:00:01]} 37. Qh7+ {[%clk 0:01:35]}  Ke6 {[%clk 0:00:02]} 38. Qxg6+ {[%clk 0:01:34]}  Kd7 {[%clk 0:00:03]} 39. Qf7+ {[%clk 0:01:32]}  Kc6 {[%clk 0:00:04]} 40. Qd5+ {[%clk 0:01:26]}  Qxd5 {[%clk 0:00:04]} 41. exd5+ {[%clk 0:01:27]}  Kb5 {[%clk 0:00:04]} 42. d6 {[%clk 0:01:27]}  Rd8 {[%clk 0:00:03]} 43. Bf1 {[%clk 0:01:27]}  Ka4 {[%clk 0:00:03]} 44. Bxe2 {[%clk 0:01:28]}  Kxa3 {[%clk 0:00:03]} 45. b5+ {[%clk 0:01:27]}  Ka4 {[%clk 0:00:03]} 46. bxa6 {[%clk 0:01:28]}  bxa6 {[%clk 0:00:04]} 47. Bxa6 {[%clk 0:01:29]}  Ka5 {[%clk 0:00:04]} 48. Bf1 {[%clk 0:01:28]} 1-0


[Site "https://www.chess.com"]

[Event "Titled Tuesday Blitz May 03 Late 2022"]
[White "Koellner, Ruben Gideon"]
[Black "Baches Garcia, Guillermo"]
[WhiteFideId "12993093"]
[BlackFideId "2209764"]
[WhiteElo "2617"]
[BlackElo "2485"]
[Result "0-1"]
[Round "05"]
[TimeControl "180+1"]
[Date "2022.05.03"]
[WhiteClock "0:00:04"]
[BlackClock "0:00:09"]

1. d4 {[%clk 0:03:00]}  Nf6 {[%clk 0:02:59]} 2. Bg5 {[%clk 0:02:56]}  e6 {[%clk 0:02:59]} 3. Nd2 {[%clk 0:02:56]}  d5 {[%clk 0:02:59]} 4. e3 {[%clk 0:02:55]}  c5 {[%clk 0:02:56]} 5. c3 {[%clk 0:02:54]}  Nc6 {[%clk 0:02:56]} 6. f4 {[%clk 0:02:53]}  Qb6 {[%clk 0:02:53]} 7. Rb1 {[%clk 0:02:52]}  Ne4 {[%clk 0:02:43]} 8. Nxe4 {[%clk 0:02:48]}  dxe4 {[%clk 0:02:44]} 9. Ne2 {[%clk 0:02:37]}  cxd4 {[%clk 0:02:35]} 10. Nxd4 {[%clk 0:02:35]}  Nxd4 {[%clk 0:02:18]} 11. Qxd4 {[%clk 0:02:34]}  Qxd4 {[%clk 0:02:08]} 12. exd4 {[%clk 0:02:34]}  h6 {[%clk 0:01:56]} 13. Bh4 {[%clk 0:02:33]}  g5 {[%clk 0:01:55]} 14. Bg3 {[%clk 0:02:27]}  Bd7 {[%clk 0:01:35]} 15. Kd2 {[%clk 0:02:18]}  Be7 {[%clk 0:01:19]} 16. Ke3 {[%clk 0:02:17]}  Bc6 {[%clk 0:01:17]} 17. Bc4 {[%clk 0:02:14]}  h5 {[%clk 0:01:15]} 18. fxg5 {[%clk 0:02:01]}  Bxg5+ {[%clk 0:01:14]} 19. Bf4 {[%clk 0:02:01]}  Rg8 {[%clk 0:01:11]} 20. Bxg5 {[%clk 0:01:55]}  Rxg5 {[%clk 0:01:12]} 21. g3 {[%clk 0:01:54]}  h4 {[%clk 0:01:07]} 22. gxh4 {[%clk 0:01:46]}  Rh5 {[%clk 0:01:07]} 23. Rhg1 {[%clk 0:01:43]}  Ke7 {[%clk 0:01:07]} 24. Rg4 {[%clk 0:01:25]}  Rah8 {[%clk 0:01:06]} 25. Rf1 {[%clk 0:01:14]}  Rxh4 {[%clk 0:01:02]} 26. Rg7 {[%clk 0:01:12]}  Rh3+ {[%clk 0:00:54]} 27. Kd2 {[%clk 0:01:09]}  Rxh2+ {[%clk 0:00:54]} 28. Kc1 {[%clk 0:01:06]}  Be8 {[%clk 0:00:37]} 29. d5 {[%clk 0:01:06]}  R8h7 {[%clk 0:00:29]} 30. Rxh7 {[%clk 0:01:02]}  Rxh7 {[%clk 0:00:28]} 31. dxe6 {[%clk 0:01:02]}  fxe6 {[%clk 0:00:28]} 32. Bb3 {[%clk 0:00:56]}  Bc6 {[%clk 0:00:27]} 33. Bc2 {[%clk 0:00:54]}  Kd6 {[%clk 0:00:27]} 34. Rf2 {[%clk 0:00:49]}  Ke5 {[%clk 0:00:26]} 35. Kd2 {[%clk 0:00:49]}  Rh3 {[%clk 0:00:25]} 36. Re2 {[%clk 0:00:48]}  Rf3 {[%clk 0:00:22]} 37. b3 {[%clk 0:00:45]}  Kf4 {[%clk 0:00:22]} 38. c4 {[%clk 0:00:43]}  e3+ {[%clk 0:00:21]} 39. Kc3 {[%clk 0:00:42]}  Rf2 {[%clk 0:00:20]} 40. Re1 {[%clk 0:00:38]}  Be4 {[%clk 0:00:20]} 41. Bd1 {[%clk 0:00:33]}  Rxa2 {[%clk 0:00:17]} 42. b4 {[%clk 0:00:26]}  Rf2 {[%clk 0:00:15]} 43. b5 {[%clk 0:00:20]}  Bf3 {[%clk 0:00:13]} 44. Bc2 {[%clk 0:00:17]}  e2 {[%clk 0:00:11]} 45. Kd2 {[%clk 0:00:15]}  e5 {[%clk 0:00:09]} 46. c5 {[%clk 0:00:11]}  e4 {[%clk 0:00:09]} 47. Bb3 {[%clk 0:00:05]}  e3+ {[%clk 0:00:09]} 48. Kc3 {[%clk 0:00:04]}  Rf1 {[%clk 0:00:09]} 0-1


[Site "https://www.chess.com"]

[Event "Titled Tuesday Blitz May 03 Late 2022"]
[White "Kohler, Aran"]
[Black "Karttunen, Mika"]
[WhiteFideId "1002856"]
[BlackFideId "502081"]
[WhiteElo "2335"]
[BlackElo "2343"]
[Result "0-1"]
[Round "05"]
[TimeControl "180+1"]
[Date "2022.05.03"]
[WhiteClock "0:00:11"]
[BlackClock "0:00:15"]

1. d4 {[%clk 0:02:59]}  Nf6 {[%clk 0:02:57]} 2. Nf3 {[%clk 0:02:59]}  g6 {[%clk 0:02:54]} 3. Bg5 {[%clk 0:02:58]}  Bg7 {[%clk 0:02:50]} 4. Nbd2 {[%clk 0:02:58]}  d6 {[%clk 0:02:50]} 5. e3 {[%clk 0:02:58]}  Nbd7 {[%clk 0:02:44]} 6. Bd3 {[%clk 0:02:56]}  h6 {[%clk 0:02:43]} 7. Bh4 {[%clk 0:02:54]}  g5 {[%clk 0:02:39]} 8. Bg3 {[%clk 0:02:54]}  Nh5 {[%clk 0:02:38]} 9. c3 {[%clk 0:02:46]}  e6 {[%clk 0:02:36]} 10. Qb3 {[%clk 0:02:29]}  a5 {[%clk 0:02:09]} 11. a4 {[%clk 0:02:27]}  O-O {[%clk 0:02:03]} 12. h4 {[%clk 0:02:17]}  g4 {[%clk 0:01:52]} 13. Nh2 {[%clk 0:02:15]}  Nxg3 {[%clk 0:01:51]} 14. fxg3 {[%clk 0:02:15]}  h5 {[%clk 0:01:48]} 15. O-O {[%clk 0:02:15]}  Bh6 {[%clk 0:01:34]} 16. Rae1 {[%clk 0:02:13]}  d5 {[%clk 0:01:35]} 17. Rf2 {[%clk 0:02:02]}  f5 {[%clk 0:01:34]} 18. Bxf5 {[%clk 0:01:56]}  exf5 {[%clk 0:01:13]} 19. Qxd5+ {[%clk 0:01:56]}  Kg7 {[%clk 0:01:06]} 20. Rxf5 {[%clk 0:01:53]}  Rxf5 {[%clk 0:00:58]} 21. Qxf5 {[%clk 0:01:52]}  Nf6 {[%clk 0:00:58]} 22. Qe5 {[%clk 0:01:45]}  Qd6 {[%clk 0:00:50]} 23. Qxd6 {[%clk 0:01:43]}  cxd6 {[%clk 0:00:50]} 24. Nc4 {[%clk 0:01:43]}  Ne4 {[%clk 0:00:45]} 25. Nb6 {[%clk 0:01:33]}  Rb8 {[%clk 0:00:44]} 26. Nf1 {[%clk 0:01:30]}  Bf5 {[%clk 0:00:42]} 27. c4 {[%clk 0:01:05]}  Rd8 {[%clk 0:00:40]} 28. Kh2 {[%clk 0:01:03]}  Kg6 {[%clk 0:00:40]} 29. Nd5 {[%clk 0:01:00]}  Bd7 {[%clk 0:00:38]} 30. Ne7+ {[%clk 0:00:58]}  Kf7 {[%clk 0:00:35]} 31. Nd5 {[%clk 0:00:58]}  Bc6 {[%clk 0:00:25]} 32. Nf4 {[%clk 0:00:56]}  Nf6 {[%clk 0:00:22]} 33. b3 {[%clk 0:00:53]}  Be4 {[%clk 0:00:22]} 34. Nd2 {[%clk 0:00:50]}  Bxf4 {[%clk 0:00:21]} 35. gxf4 {[%clk 0:00:49]}  Re8 {[%clk 0:00:21]} 36. Kg3 {[%clk 0:00:42]}  Kg6 {[%clk 0:00:20]} 37. Kf2 {[%clk 0:00:41]}  Kf5 {[%clk 0:00:20]} 38. g3 {[%clk 0:00:41]}  Bd3 {[%clk 0:00:19]} 39. Rc1 {[%clk 0:00:40]}  Ne4+ {[%clk 0:00:20]} 40. Nxe4 {[%clk 0:00:38]}  Kxe4 {[%clk 0:00:20]} 41. c5 {[%clk 0:00:35]}  Kd5 {[%clk 0:00:20]} 42. cxd6 {[%clk 0:00:35]}  Kxd6 {[%clk 0:00:21]} 43. Rc5 {[%clk 0:00:35]}  b6 {[%clk 0:00:21]} 44. Rxh5 {[%clk 0:00:35]}  Rc8 {[%clk 0:00:21]} 45. Rh6+ {[%clk 0:00:31]}  Kd7 {[%clk 0:00:20]} 46. Rxb6 {[%clk 0:00:29]}  Rc2+ {[%clk 0:00:21]} 47. Ke1 {[%clk 0:00:28]}  Re2+ {[%clk 0:00:21]} 48. Kd1 {[%clk 0:00:28]}  Rxe3 {[%clk 0:00:21]} 49. Kd2 {[%clk 0:00:23]}  Rxg3 {[%clk 0:00:21]} 50. h5 {[%clk 0:00:23]}  Be4 {[%clk 0:00:20]} 51. h6 {[%clk 0:00:22]}  Rh3 {[%clk 0:00:21]} 52. Ra6 {[%clk 0:00:21]}  g3 {[%clk 0:00:21]} 53. Rxa5 {[%clk 0:00:19]}  Rxh6 {[%clk 0:00:21]} 54. Rg5 {[%clk 0:00:19]}  g2 {[%clk 0:00:21]} 55. Ke3 {[%clk 0:00:20]}  Rh1 {[%clk 0:00:20]} 56. Kxe4 {[%clk 0:00:19]}  g1=Q {[%clk 0:00:20]} 57. Rxg1 {[%clk 0:00:19]}  Rxg1 {[%clk 0:00:21]} 58. Kd5 {[%clk 0:00:19]}  Rf1 {[%clk 0:00:20]} 59. b4 {[%clk 0:00:18]}  Rxf4 {[%clk 0:00:21]} 60. Kc5 {[%clk 0:00:17]}  Rf1 {[%clk 0:00:20]} 61. a5 {[%clk 0:00:17]}  Rc1+ {[%clk 0:00:21]} 62. Kb6 {[%clk 0:00:16]}  Rc6+ {[%clk 0:00:18]} 63. Kb7 {[%clk 0:00:13]}  Rc7+ {[%clk 0:00:15]} 64. Kb6 {[%clk 0:00:10]}  Rc8 {[%clk 0:00:14]} 65. b5 {[%clk 0:00:10]}  Rb8+ {[%clk 0:00:14]} 66. Kc5 {[%clk 0:00:10]}  Kc7 {[%clk 0:00:14]} 67. b6+ {[%clk 0:00:10]}  Kb7 {[%clk 0:00:14]} 68. Kb5 {[%clk 0:00:10]}  Rd8 {[%clk 0:00:15]} 69. a6+ {[%clk 0:00:10]}  Kb8 {[%clk 0:00:15]} 70. Kc6 {[%clk 0:00:11]}  Rxd4 {[%clk 0:00:13]} 71. a7+ {[%clk 0:00:11]}  Ka8 {[%clk 0:00:14]} 72. Kc7 {[%clk 0:00:12]}  Rc4+ {[%clk 0:00:14]} 73. Kd6 {[%clk 0:00:12]}  Rc1 {[%clk 0:00:14]} 74. Kd5 {[%clk 0:00:12]}  Kb7 {[%clk 0:00:13]} 75. Kd6 {[%clk 0:00:11]}  Rc6+ {[%clk 0:00:13]} 76. Kd7 {[%clk 0:00:11]}  Rxb6 {[%clk 0:00:14]} 77. a8=Q+ {[%clk 0:00:11]}  Kxa8 {[%clk 0:00:15]} 0-1


[Site "https://www.chess.com"]

[Event "Titled Tuesday Blitz May 03 Late 2022"]
[White "Korchmar, Vasiliy"]
[Black "Mikhalsky, Vladimir"]
[WhiteFideId "24131750"]
[BlackFideId "14144352"]
[WhiteElo "2370"]
[BlackElo "2301"]
[Result "1-0"]
[Round "05"]
[TimeControl "180+1"]
[Date "2022.05.03"]
[WhiteClock "0:01:15"]
[BlackClock "0:00:01"]

1. e4 {[%clk 0:03:00]}  c5 {[%clk 0:02:59]} 2. Nf3 {[%clk 0:03:00]}  Nc6 {[%clk 0:02:59]} 3. d4 {[%clk 0:03:01]}  cxd4 {[%clk 0:02:59]} 4. Nxd4 {[%clk 0:03:01]}  Nf6 {[%clk 0:02:59]} 5. Nc3 {[%clk 0:03:01]}  e5 {[%clk 0:03:00]} 6. Ndb5 {[%clk 0:03:01]}  d6 {[%clk 0:03:00]} 7. Nd5 {[%clk 0:03:01]}  Nxd5 {[%clk 0:03:00]} 8. exd5 {[%clk 0:03:01]}  Ne7 {[%clk 0:03:01]} 9. c4 {[%clk 0:03:00]}  Ng6 {[%clk 0:02:59]} 10. Qa4 {[%clk 0:02:59]}  Bd7 {[%clk 0:02:59]} 11. Qb4 {[%clk 0:02:59]}  Qb8 {[%clk 0:02:55]} 12. h4 {[%clk 0:03:00]}  h5 {[%clk 0:02:53]} 13. Be2 {[%clk 0:02:59]}  Be7 {[%clk 0:02:48]} 14. g3 {[%clk 0:02:59]}  a6 {[%clk 0:02:43]} 15. Nc3 {[%clk 0:02:58]}  a5 {[%clk 0:02:42]} 16. Qa3 {[%clk 0:02:42]}  f5 {[%clk 0:02:14]} 17. Bg5 {[%clk 0:02:41]}  f4 {[%clk 0:02:09]} 18. Ne4 {[%clk 0:02:34]}  Bf5 {[%clk 0:02:02]} 19. Bxe7 {[%clk 0:02:28]}  Kxe7 {[%clk 0:01:43]} 20. Ng5 {[%clk 0:02:27]}  Qc7 {[%clk 0:01:20]} 21. O-O {[%clk 0:02:18]}  Rac8 {[%clk 0:01:08]} 22. Bd3 {[%clk 0:02:15]}  Rhf8 {[%clk 0:00:55]} 23. Bxf5 {[%clk 0:02:13]}  Rxf5 {[%clk 0:00:55]} 24. Qd3 {[%clk 0:02:12]}  Rcf8 {[%clk 0:00:37]} 25. Ne6 {[%clk 0:02:11]}  Qc8 {[%clk 0:00:32]} 26. Nxg7 {[%clk 0:01:47]}  R8f7 {[%clk 0:00:25]} 27. Nxf5+ {[%clk 0:01:46]}  Rxf5 {[%clk 0:00:24]} 28. c5 {[%clk 0:01:46]}  dxc5 {[%clk 0:00:10]} 29. d6+ {[%clk 0:01:46]}  Ke6 {[%clk 0:00:07]} 30. Rad1 {[%clk 0:01:35]}  Qd7 {[%clk 0:00:07]} 31. Qc4+ {[%clk 0:01:33]}  Kf6 {[%clk 0:00:07]} 32. Qxc5 {[%clk 0:01:34]}  f3 {[%clk 0:00:03]} 33. Qc7 {[%clk 0:01:32]}  Ke6 {[%clk 0:00:02]} 34. Rfe1 {[%clk 0:01:28]}  Nf8 {[%clk 0:00:01]} 35. Qxa5 {[%clk 0:01:15]} 1-0


[Site "https://www.chess.com"]

[Event "Titled Tuesday Blitz May 03 Late 2022"]
[White "Meduri, Aakaash"]
[Black "Kujawski, Adam"]
[WhiteFideId "2032252"]
[BlackFideId "1100920"]
[WhiteElo "2096"]
[BlackElo "2053"]
[Result "1-0"]
[Round "05"]
[TimeControl "180+1"]
[Date "2022.05.03"]
[WhiteClock "0:01:57"]
[BlackClock "0:01:02"]

1. b4 {[%clk 0:03:00]}  e5 {[%clk 0:02:58]} 2. a3 {[%clk 0:02:59]}  d5 {[%clk 0:02:53]} 3. Bb2 {[%clk 0:02:59]}  Bd6 {[%clk 0:02:53]} 4. e3 {[%clk 0:02:56]}  Nf6 {[%clk 0:02:53]} 5. g3 {[%clk 0:02:55]}  O-O {[%clk 0:02:42]} 6. Bg2 {[%clk 0:02:55]}  c6 {[%clk 0:02:33]} 7. Ne2 {[%clk 0:02:53]}  Bf5 {[%clk 0:02:31]} 8. O-O {[%clk 0:02:52]}  Re8 {[%clk 0:02:31]} 9. d3 {[%clk 0:02:52]}  h6 {[%clk 0:02:31]} 10. Nd2 {[%clk 0:02:51]}  Bh7 {[%clk 0:02:31]} 11. c4 {[%clk 0:02:51]}  Nbd7 {[%clk 0:02:28]} 12. Nb3 {[%clk 0:02:49]}  Bf8 {[%clk 0:02:18]} 13. Rc1 {[%clk 0:02:47]}  Nb6 {[%clk 0:02:16]} 14. Ba1 {[%clk 0:02:29]}  dxc4 {[%clk 0:02:08]} 15. dxc4 {[%clk 0:02:29]}  Qd3 {[%clk 0:02:07]} 16. Rc3 {[%clk 0:02:11]}  Qxd1 {[%clk 0:02:00]} 17. Rxd1 {[%clk 0:02:12]}  Na4 {[%clk 0:01:59]} 18. Rcc1 {[%clk 0:02:09]}  Be4 {[%clk 0:01:03]} 19. Nc3 {[%clk 0:01:59]}  Bxg2 {[%clk 0:01:01]} 20. Kxg2 {[%clk 0:01:59]}  Red8 {[%clk 0:01:02]} 21. Nxa4 {[%clk 0:01:57]} 1-0


[Site "https://www.chess.com"]

[Event "Titled Tuesday Blitz May 03 Late 2022"]
[White "Melikhov, Evgeny V."]
[Black "Burke, Paul"]
[WhiteFideId "4122046"]
[BlackFideId "2605767"]
[WhiteElo "1931"]
[BlackElo "1848"]
[Result "1-0"]
[Round "05"]
[TimeControl "180+1"]
[Date "2022.05.03"]
[WhiteClock "0:00:33"]
[BlackClock "0:00:44"]

1. d4 {[%clk 0:03:00]}  Nf6 {[%clk 0:02:58]} 2. c4 {[%clk 0:03:00]}  c5 {[%clk 0:02:59]} 3. d5 {[%clk 0:03:00]}  Ne4 {[%clk 0:02:58]} 4. Nf3 {[%clk 0:02:55]}  Qa5+ {[%clk 0:02:58]} 5. Nbd2 {[%clk 0:02:53]}  d6 {[%clk 0:02:57]} 6. a3 {[%clk 0:02:50]}  Nf6 {[%clk 0:02:50]} 7. Qc2 {[%clk 0:02:45]}  g6 {[%clk 0:02:47]} 8. e4 {[%clk 0:02:44]}  Bg7 {[%clk 0:02:47]} 9. Be2 {[%clk 0:02:41]}  O-O {[%clk 0:02:46]} 10. O-O {[%clk 0:02:41]}  Qd8 {[%clk 0:02:45]} 11. h3 {[%clk 0:02:38]}  h6 {[%clk 0:02:45]} 12. e5 {[%clk 0:02:33]}  dxe5 {[%clk 0:02:44]} 13. Nxe5 {[%clk 0:02:33]}  Bf5 {[%clk 0:02:41]} 14. Bd3 {[%clk 0:02:28]}  Bxd3 {[%clk 0:02:32]} 15. Qxd3 {[%clk 0:02:26]}  Nxd5 {[%clk 0:02:14]} 16. Nxg6 {[%clk 0:02:24]}  fxg6 {[%clk 0:02:10]} 17. cxd5 {[%clk 0:02:24]}  Na6 {[%clk 0:01:58]} 18. Nc4 {[%clk 0:02:01]}  g5 {[%clk 0:01:54]} 19. Be3 {[%clk 0:01:51]}  b5 {[%clk 0:01:50]} 20. Nd2 {[%clk 0:01:23]}  c4 {[%clk 0:01:44]} 21. Qg6 {[%clk 0:01:15]}  Qd6 {[%clk 0:01:38]} 22. Qxd6 {[%clk 0:01:10]}  exd6 {[%clk 0:01:37]} 23. Rab1 {[%clk 0:01:10]}  Nc5 {[%clk 0:01:35]} 24. Nf3 {[%clk 0:01:09]}  Na4 {[%clk 0:01:20]} 25. Bd4 {[%clk 0:01:07]}  Rfe8 {[%clk 0:01:14]} 26. Bxg7 {[%clk 0:01:05]}  Kxg7 {[%clk 0:01:14]} 27. Nd4 {[%clk 0:01:05]}  Re4 {[%clk 0:01:10]} 28. Nxb5 {[%clk 0:01:04]}  Rd8 {[%clk 0:01:04]} 29. Nxa7 {[%clk 0:01:02]}  Re2 {[%clk 0:01:01]} 30. b3 {[%clk 0:00:59]}  Nc3 {[%clk 0:01:00]} 31. Rbc1 {[%clk 0:00:54]}  Nxd5 {[%clk 0:00:59]} 32. bxc4 {[%clk 0:00:54]}  Nf4 {[%clk 0:00:58]} 33. Nb5 {[%clk 0:00:53]}  d5 {[%clk 0:00:53]} 34. c5 {[%clk 0:00:51]}  d4 {[%clk 0:00:52]} 35. c6 {[%clk 0:00:51]}  d3 {[%clk 0:00:51]} 36. c7 {[%clk 0:00:52]}  Rc8 {[%clk 0:00:49]} 37. Nd6 {[%clk 0:00:43]}  d2 {[%clk 0:00:48]} 38. Nxc8 {[%clk 0:00:42]}  dxc1=Q {[%clk 0:00:46]} 39. Rxc1 {[%clk 0:00:41]}  Nd3 {[%clk 0:00:45]} 40. Nd6 {[%clk 0:00:33]}  Nxc1 {[%clk 0:00:44]} 41. c8=Q {[%clk 0:00:33]}  Re1+ {[%clk 0:00:44]} 42. Kh2 {[%clk 0:00:33]} 1-0


[Site "https://www.chess.com"]